[Event "Titled Tuesday Blitz January 10 Early 2023"]
[White "Kukhmazov, Arsen"]
[Black "Valle Maytin, Luis Enrique"]
[WhiteFideId "24108260"]
[BlackFideId "3503666"]
[WhiteElo "2512"]
[BlackElo "2241"]
[Result "1-0"]
[Round "01"]
[TimeControl "180+2"]
[Date "2023.01.10"]
[WhiteClock "0:00:06"]
[BlackClock "0:00:04"]

1. Nf3 {[%clk 0:03:00]}  Nf6 {[%clk 0:02:59]} 2. c4 {[%clk 0:03:00]}  c5 {[%clk 0:02:51]} 3. Nc3 {[%clk 0:02:55]}  Nc6 {[%clk 0:02:44]} 4. e3 {[%clk 0:02:52]}  e6 {[%clk 0:02:41]} 5. d4 {[%clk 0:02:46]}  cxd4 {[%clk 0:02:40]} 6. exd4 {[%clk 0:02:47]}  d5 {[%clk 0:02:30]} 7. Bd3 {[%clk 0:02:44]}  Bb4 {[%clk 0:02:28]} 8. O-O {[%clk 0:02:44]}  O-O {[%clk 0:02:27]} 9. cxd5 {[%clk 0:02:44]}  exd5 {[%clk 0:02:28]} 10. Bg5 {[%clk 0:02:41]}  Be6 {[%clk 0:02:25]} 11. Bc2 {[%clk 0:02:37]}  h6 {[%clk 0:02:12]} 12. Bh4 {[%clk 0:02:37]}  Be7 {[%clk 0:02:09]} 13. a3 {[%clk 0:02:33]}  g6 {[%clk 0:01:42]} 14. Re1 {[%clk 0:02:25]}  Kg7 {[%clk 0:01:41]} 15. Rc1 {[%clk 0:02:10]}  Ng8 {[%clk 0:01:41]} 16. Bg3 {[%clk 0:02:10]}  Bf6 {[%clk 0:01:40]} 17. Ne5 {[%clk 0:02:08]}  Nge7 {[%clk 0:01:39]} 18. Nxc6 {[%clk 0:01:55]}  Nxc6 {[%clk 0:01:36]} 19. Nb5 {[%clk 0:01:50]}  a6 {[%clk 0:01:28]} 20. Nc7 {[%clk 0:01:50]}  Nxd4 {[%clk 0:01:21]} 21. Nxa8 {[%clk 0:01:47]}  Qxa8 {[%clk 0:01:21]} 22. Bb1 {[%clk 0:01:46]}  Nf5 {[%clk 0:01:08]} 23. Be5 {[%clk 0:01:45]}  Qd8 {[%clk 0:01:01]} 24. Qd2 {[%clk 0:01:31]}  Bxe5 {[%clk 0:00:53]} 25. Rxe5 {[%clk 0:01:32]}  Qf6 {[%clk 0:00:52]} 26. f4 {[%clk 0:01:32]}  Nd6 {[%clk 0:00:50]} 27. b3 {[%clk 0:01:25]}  Rd8 {[%clk 0:00:39]} 28. g3 {[%clk 0:01:11]}  Rd7 {[%clk 0:00:26]} 29. a4 {[%clk 0:00:54]}  Qd8 {[%clk 0:00:25]} 30. Qd4 {[%clk 0:00:52]}  Rc7 {[%clk 0:00:20]} 31. Rxe6+ {[%clk 0:00:51]}  Kg8 {[%clk 0:00:18]} 32. Rxc7 {[%clk 0:00:47]}  Qxc7 {[%clk 0:00:17]} 33. Re1 {[%clk 0:00:47]}  Qc6 {[%clk 0:00:15]} 34. f5 {[%clk 0:00:43]}  gxf5 {[%clk 0:00:14]} 35. Qf2 {[%clk 0:00:38]}  Qd7 {[%clk 0:00:13]} 36. Re5 {[%clk 0:00:36]}  f6 {[%clk 0:00:12]} 37. Rxd5 {[%clk 0:00:35]}  Qe6 {[%clk 0:00:12]} 38. Qd2 {[%clk 0:00:34]}  Nf7 {[%clk 0:00:11]} 39. Bxf5 {[%clk 0:00:33]}  Qb6+ {[%clk 0:00:11]} 40. Qd4 {[%clk 0:00:32]}  Qxb3 {[%clk 0:00:11]} 41. Rd7 {[%clk 0:00:24]}  Kf8 {[%clk 0:00:06]} 42. Qc5+ {[%clk 0:00:20]}  Kg7 {[%clk 0:00:05]} 43. Qf2 {[%clk 0:00:13]}  Qc3 {[%clk 0:00:05]} 44. h4 {[%clk 0:00:12]}  Kf8 {[%clk 0:00:05]} 45. Kh2 {[%clk 0:00:12]}  Ne5 {[%clk 0:00:05]} 46. Rd8+ {[%clk 0:00:10]}  Ke7 {[%clk 0:00:05]} 47. Rd1 {[%clk 0:00:11]}  Nf3+ {[%clk 0:00:05]} 48. Kg2 {[%clk 0:00:11]}  Ne5 {[%clk 0:00:05]} 49. Re1 {[%clk 0:00:11]}  Qc6+ {[%clk 0:00:05]} 50. Kh2 {[%clk 0:00:11]}  Kf7 {[%clk 0:00:05]} 51. Re4 {[%clk 0:00:10]}  Qc3 {[%clk 0:00:04]} 52. Kg2 {[%clk 0:00:10]}  Qc6 {[%clk 0:00:04]} 53. Qf4 {[%clk 0:00:09]}  Qc3 {[%clk 0:00:05]} 54. Re3 {[%clk 0:00:08]}  Qc6+ {[%clk 0:00:05]} 55. Be4 {[%clk 0:00:08]}  Qd6 {[%clk 0:00:05]} 56. Re2 {[%clk 0:00:08]}  Qe6 {[%clk 0:00:04]} 57. Rf2 {[%clk 0:00:09]}  Ng4 {[%clk 0:00:05]} 58. Bf5 {[%clk 0:00:07]}  Qd5+ {[%clk 0:00:05]} 59. Qf3 {[%clk 0:00:06]}  Nxf2 {[%clk 0:00:05]} 60. Qxd5+ {[%clk 0:00:06]}  Kg7 {[%clk 0:00:04]} 61. Kxf2 {[%clk 0:00:06]} 1-0


[Site "https://www.chess.com"]

[Event "Titled Tuesday Blitz January 10 Early 2023"]
[White "Novikov, Evgenij"]
[Black "Shimanov, Aleksandr"]
[WhiteFideId "4125380"]
[BlackFideId "4198603"]
[WhiteElo "2276"]
[BlackElo "2581"]
[Result "0-1"]
[Round "01"]
[TimeControl "180+2"]
[Date "2023.01.10"]
[WhiteClock "0:00:02"]
[BlackClock "0:00:09"]

1. d4 {[%clk 0:03:00]}  e6 {[%clk 0:02:59]} 2. Nf3 {[%clk 0:02:58]}  b5 {[%clk 0:02:55]} 3. g3 {[%clk 0:02:55]}  Bb7 {[%clk 0:02:55]} 4. Bg2 {[%clk 0:02:56]}  Nf6 {[%clk 0:02:55]} 5. b3 {[%clk 0:02:53]}  Be7 {[%clk 0:02:51]} 6. c4 {[%clk 0:02:45]}  a6 {[%clk 0:02:51]} 7. O-O {[%clk 0:02:35]}  O-O {[%clk 0:02:51]} 8. Bb2 {[%clk 0:02:32]}  d6 {[%clk 0:02:50]} 9. Nbd2 {[%clk 0:02:30]}  Nbd7 {[%clk 0:02:49]} 10. Re1 {[%clk 0:02:28]}  c5 {[%clk 0:02:45]} 11. e3 {[%clk 0:02:26]}  Rc8 {[%clk 0:02:42]} 12. Rc1 {[%clk 0:02:25]}  Rc7 {[%clk 0:02:35]} 13. Qe2 {[%clk 0:01:51]}  bxc4 {[%clk 0:02:28]} 14. bxc4 {[%clk 0:01:49]}  Qa8 {[%clk 0:02:21]} 15. Nh4 {[%clk 0:01:31]}  Rfc8 {[%clk 0:02:15]} 16. Rc2 {[%clk 0:01:22]}  Nb6 {[%clk 0:02:07]} 17. Rec1 {[%clk 0:01:19]}  Na4 {[%clk 0:01:57]} 18. Ba1 {[%clk 0:01:17]}  Bxg2 {[%clk 0:01:55]} 19. Nxg2 {[%clk 0:01:16]}  h6 {[%clk 0:01:50]} 20. Nf4 {[%clk 0:01:06]}  Ne4 {[%clk 0:01:49]} 21. Nf3 {[%clk 0:00:47]}  cxd4 {[%clk 0:01:37]} 22. exd4 {[%clk 0:00:45]}  Nb6 {[%clk 0:01:32]} 23. h4 {[%clk 0:00:37]}  Nf6 {[%clk 0:01:29]} 24. Nd2 {[%clk 0:00:33]}  Bf8 {[%clk 0:01:26]} 25. h5 {[%clk 0:00:30]}  Nh7 {[%clk 0:01:24]} 26. Nf3 {[%clk 0:00:27]}  a5 {[%clk 0:01:21]} 27. Kh2 {[%clk 0:00:24]}  Qa6 {[%clk 0:01:20]} 28. Nd2 {[%clk 0:00:21]}  Ng5 {[%clk 0:01:20]} 29. Qd3 {[%clk 0:00:20]}  Qa8 {[%clk 0:01:15]} 30. Qe2 {[%clk 0:00:17]}  e5 {[%clk 0:01:08]} 31. dxe5 {[%clk 0:00:16]}  dxe5 {[%clk 0:01:09]} 32. Nh3 {[%clk 0:00:17]}  Nxh3 {[%clk 0:01:04]} 33. Kxh3 {[%clk 0:00:17]}  f6 {[%clk 0:00:55]} 34. Nf3 {[%clk 0:00:17]}  Qc6 {[%clk 0:00:53]} 35. Nh4 {[%clk 0:00:18]}  Qe6+ {[%clk 0:00:53]} 36. Kh2 {[%clk 0:00:17]}  Rxc4 {[%clk 0:00:48]} 37. Rxc4 {[%clk 0:00:16]}  Rxc4 {[%clk 0:00:48]} 38. Rd1 {[%clk 0:00:16]}  Rc8 {[%clk 0:00:27]} 39. Ng6 {[%clk 0:00:14]}  e4 {[%clk 0:00:23]} 40. Rd4 {[%clk 0:00:12]}  Re8 {[%clk 0:00:21]} 41. Bc3 {[%clk 0:00:10]}  a4 {[%clk 0:00:21]} 42. Bb4 {[%clk 0:00:08]}  Bxb4 {[%clk 0:00:20]} 43. Rxb4 {[%clk 0:00:09]}  a3 {[%clk 0:00:19]} 44. Rd4 {[%clk 0:00:08]}  Nd5 {[%clk 0:00:18]} 45. Qc2 {[%clk 0:00:06]}  e3 {[%clk 0:00:17]} 46. fxe3 {[%clk 0:00:06]}  Nxe3 {[%clk 0:00:18]} 47. Qc7 {[%clk 0:00:05]}  Ng4+ {[%clk 0:00:13]} 48. Kh3 {[%clk 0:00:05]}  Ne5+ {[%clk 0:00:13]} 49. Kg2 {[%clk 0:00:05]}  Qxa2+ {[%clk 0:00:13]} 50. Kh3 {[%clk 0:00:05]}  Nxg6 {[%clk 0:00:13]} 51. hxg6 {[%clk 0:00:04]}  Qe6+ {[%clk 0:00:13]} 52. Kh2 {[%clk 0:00:03]}  f5 {[%clk 0:00:11]} 53. Rd7 {[%clk 0:00:02]}  Qxg6 {[%clk 0:00:11]} 54. Qc4+ {[%clk 0:00:02]}  Kh8 {[%clk 0:00:11]} 55. Qb3 {[%clk 0:00:02]}  Re2+ {[%clk 0:00:10]} 56. Kg1 {[%clk 0:00:03]}  Qe8 {[%clk 0:00:08]} 57. Rb7 {[%clk 0:00:03]}  Re1+ {[%clk 0:00:08]} 58. Kg2 {[%clk 0:00:02]}  Qe2+ {[%clk 0:00:09]} 0-1


[Site "https://www.chess.com"]

[Event "Titled Tuesday Blitz January 10 Early 2023"]
[White "Baskakov, Egor"]
[Black "Melaugh, Shane"]
[WhiteFideId "24197866"]
[BlackFideId "2509580"]
[WhiteElo "2215"]
[BlackElo "2115"]
[Result "1-0"]
[Round "01"]
[TimeControl "180+2"]
[Date "2023.01.10"]
[WhiteClock "0:01:20"]
[BlackClock "0:00:33"]

1. e4 {[%clk 0:02:59]}  d6 {[%clk 0:02:58]} 2. g3 {[%clk 0:02:59]}  g6 {[%clk 0:02:55]} 3. Bg2 {[%clk 0:02:59]}  Bg7 {[%clk 0:02:56]} 4. Ne2 {[%clk 0:03:00]}  Nf6 {[%clk 0:02:53]} 5. O-O {[%clk 0:03:00]}  c5 {[%clk 0:02:50]} 6. d4 {[%clk 0:03:00]}  Nc6 {[%clk 0:02:51]} 7. h3 {[%clk 0:02:59]}  cxd4 {[%clk 0:02:51]} 8. Nxd4 {[%clk 0:03:00]}  O-O {[%clk 0:02:50]} 9. Ne2 {[%clk 0:03:01]}  a6 {[%clk 0:02:45]} 10. a4 {[%clk 0:03:00]}  Rb8 {[%clk 0:02:41]} 11. Nbc3 {[%clk 0:03:00]}  b5 {[%clk 0:02:41]} 12. axb5 {[%clk 0:03:01]}  axb5 {[%clk 0:02:42]} 13. Be3 {[%clk 0:03:02]}  b4 {[%clk 0:02:41]} 14. Nd5 {[%clk 0:03:02]}  Bb7 {[%clk 0:02:33]} 15. b3 {[%clk 0:03:00]}  Nxd5 {[%clk 0:02:15]} 16. exd5 {[%clk 0:03:01]}  Ne5 {[%clk 0:02:15]} 17. Qd2 {[%clk 0:02:57]}  Ba8 {[%clk 0:02:07]} 18. Ra7 {[%clk 0:02:48]}  Re8 {[%clk 0:01:57]} 19. Nd4 {[%clk 0:02:42]}  Qc8 {[%clk 0:01:54]} 20. f4 {[%clk 0:02:37]}  Nd7 {[%clk 0:01:49]} 21. Nc6 {[%clk 0:02:37]}  Bxc6 {[%clk 0:01:49]} 22. dxc6 {[%clk 0:02:38]}  Nc5 {[%clk 0:01:38]} 23. c7 {[%clk 0:01:50]}  Rb6 {[%clk 0:01:38]} 24. Ra8 {[%clk 0:01:46]}  Qd7 {[%clk 0:01:28]} 25. Bxc5 {[%clk 0:01:45]}  Rxa8 {[%clk 0:01:24]} 26. Bxb6 {[%clk 0:01:41]}  Re8 {[%clk 0:01:18]} 27. Qxb4 {[%clk 0:01:40]}  e5 {[%clk 0:01:17]} 28. fxe5 {[%clk 0:01:40]}  dxe5 {[%clk 0:01:17]} 29. c4 {[%clk 0:01:36]}  e4 {[%clk 0:01:17]} 30. Qb5 {[%clk 0:01:36]}  Qe6 {[%clk 0:01:16]} 31. Rd1 {[%clk 0:01:28]}  Bf6 {[%clk 0:01:14]} 32. Be3 {[%clk 0:01:25]}  Kg7 {[%clk 0:01:10]} 33. Qd7 {[%clk 0:01:24]}  Qxd7 {[%clk 0:00:53]} 34. Rxd7 {[%clk 0:01:25]}  Rc8 {[%clk 0:00:54]} 35. Bxe4 {[%clk 0:01:23]}  Be5 {[%clk 0:00:54]} 36. Bb6 {[%clk 0:01:22]}  Kf6 {[%clk 0:00:50]} 37. Bd5 {[%clk 0:01:22]}  Bxg3 {[%clk 0:00:46]} 38. Rxf7+ {[%clk 0:01:21]}  Ke5 {[%clk 0:00:45]} 39. Rxh7 {[%clk 0:01:22]}  Kf5 {[%clk 0:00:35]} 40. Kg2 {[%clk 0:01:21]}  Be5 {[%clk 0:00:34]} 41. Rd7 {[%clk 0:01:20]}  g5 {[%clk 0:00:33]} 42. Rd8 {[%clk 0:01:19]}  Rxc7 {[%clk 0:00:33]} 43. Bxc7 {[%clk 0:01:19]}  Bxc7 {[%clk 0:00:34]} 44. Rd7 {[%clk 0:01:20]}  Be5 {[%clk 0:00:33]} 45. b4 {[%clk 0:01:20]} 1-0


[Site "https://www.chess.com"]

[Event "Titled Tuesday Blitz January 10 Early 2023"]
[White "Della Corte, Alessandro"]
[Black "Kravtsiv, Martyn"]
[WhiteFideId "813540"]
[BlackFideId "14113147"]
[WhiteElo "2160"]
[BlackElo "2598"]
[Result "0-1"]
[Round "01"]
[TimeControl "180+2"]
[Date "2023.01.10"]
[WhiteClock "0:00:58"]
[BlackClock "0:00:13"]

1. d4 {[%clk 0:03:00]}  d5 {[%clk 0:02:59]} 2. Nf3 {[%clk 0:03:00]}  Nf6 {[%clk 0:02:57]} 3. c4 {[%clk 0:03:01]}  e6 {[%clk 0:02:57]} 4. Nc3 {[%clk 0:03:00]}  Nbd7 {[%clk 0:02:57]} 5. e3 {[%clk 0:03:00]}  b6 {[%clk 0:02:53]} 6. b3 {[%clk 0:02:58]}  Bb7 {[%clk 0:02:50]} 7. Bb2 {[%clk 0:02:58]}  Bd6 {[%clk 0:02:49]} 8. Be2 {[%clk 0:02:58]}  O-O {[%clk 0:02:44]} 9. O-O {[%clk 0:02:58]}  Ne4 {[%clk 0:02:40]} 10. Nd2 {[%clk 0:02:50]}  Nxc3 {[%clk 0:02:33]} 11. Bxc3 {[%clk 0:02:49]}  a5 {[%clk 0:02:21]} 12. cxd5 {[%clk 0:02:49]}  exd5 {[%clk 0:02:21]} 13. Nf3 {[%clk 0:02:45]}  Qe7 {[%clk 0:02:17]} 14. Rc1 {[%clk 0:02:39]}  Rfd8 {[%clk 0:02:15]} 15. Qd2 {[%clk 0:02:38]}  Nf6 {[%clk 0:02:08]} 16. Bb2 {[%clk 0:02:34]}  a4 {[%clk 0:02:05]} 17. Ne5 {[%clk 0:02:32]}  c5 {[%clk 0:01:55]} 18. f4 {[%clk 0:02:16]}  Ne4 {[%clk 0:01:53]} 19. Qc2 {[%clk 0:02:15]}  f6 {[%clk 0:01:46]} 20. Nf3 {[%clk 0:02:12]}  Rdc8 {[%clk 0:01:39]} 21. dxc5 {[%clk 0:02:10]}  bxc5 {[%clk 0:01:23]} 22. Bd3 {[%clk 0:02:08]}  Kh8 {[%clk 0:01:15]} 23. Bxe4 {[%clk 0:02:07]}  dxe4 {[%clk 0:01:15]} 24. Nd2 {[%clk 0:02:08]}  axb3 {[%clk 0:01:12]} 25. axb3 {[%clk 0:02:07]}  Rd8 {[%clk 0:01:07]} 26. Nc4 {[%clk 0:02:07]}  Bc7 {[%clk 0:01:07]} 27. Rfd1 {[%clk 0:02:07]}  h6 {[%clk 0:01:04]} 28. h3 {[%clk 0:02:06]}  Qe6 {[%clk 0:00:58]} 29. Rxd8+ {[%clk 0:02:05]}  Rxd8 {[%clk 0:00:57]} 30. Rd1 {[%clk 0:02:06]}  Rxd1+ {[%clk 0:00:54]} 31. Qxd1 {[%clk 0:02:07]}  Bd5 {[%clk 0:00:54]} 32. Qc2 {[%clk 0:02:04]}  Bd8 {[%clk 0:00:52]} 33. Ba3 {[%clk 0:02:04]}  Be7 {[%clk 0:00:53]} 34. Nd2 {[%clk 0:02:01]}  Qc6 {[%clk 0:00:51]} 35. Nc4 {[%clk 0:01:55]}  Qa6 {[%clk 0:00:50]} 36. Bb2 {[%clk 0:01:47]}  Qa2 {[%clk 0:00:48]} 37. Kh2 {[%clk 0:01:42]}  Bd8 {[%clk 0:00:42]} 38. Qc3 {[%clk 0:01:36]}  Qb1 {[%clk 0:00:36]} 39. Qc1 {[%clk 0:01:32]}  Qd3 {[%clk 0:00:35]} 40. Qc3 {[%clk 0:01:31]}  Qd1 {[%clk 0:00:33]} 41. Nd6 {[%clk 0:01:23]}  Bb6 {[%clk 0:00:25]} 42. b4 {[%clk 0:01:11]}  Qd3 {[%clk 0:00:19]} 43. bxc5 {[%clk 0:01:06]}  Qxc3 {[%clk 0:00:19]} 44. Bxc3 {[%clk 0:01:05]}  Bxc5 {[%clk 0:00:19]} 45. Nf5 {[%clk 0:01:00]}  Be6 {[%clk 0:00:19]} 46. Nd4 {[%clk 0:01:00]}  Bc4 {[%clk 0:00:20]} 47. Kg3 {[%clk 0:00:59]}  Kg8 {[%clk 0:00:20]} 48. Kf2 {[%clk 0:00:59]}  Kf7 {[%clk 0:00:21]} 49. g4 {[%clk 0:01:00]}  g6 {[%clk 0:00:19]} 50. h4 {[%clk 0:00:57]}  Bd5 {[%clk 0:00:19]} 51. g5 {[%clk 0:00:56]}  fxg5 {[%clk 0:00:19]} 52. fxg5 {[%clk 0:00:56]}  hxg5 {[%clk 0:00:19]} 53. hxg5 {[%clk 0:00:57]}  Be7 {[%clk 0:00:19]} 54. Ne2 {[%clk 0:00:52]}  Bxg5 {[%clk 0:00:19]} 55. Be5 {[%clk 0:00:52]}  Bc4 {[%clk 0:00:18]} 56. Nc3 {[%clk 0:00:52]}  Bd3 {[%clk 0:00:16]} 57. Kg3 {[%clk 0:00:51]}  Ke6 {[%clk 0:00:16]} 58. Bf4 {[%clk 0:00:51]}  Bf6 {[%clk 0:00:16]} 59. Kg4 {[%clk 0:00:50]}  Bxc3 {[%clk 0:00:15]} 60. Bg5 {[%clk 0:00:50]}  Be5 {[%clk 0:00:15]} 61. Bf4 {[%clk 0:00:51]}  Bf6 {[%clk 0:00:15]} 62. Bg3 {[%clk 0:00:50]}  Be2+ {[%clk 0:00:15]} 63. Kf4 {[%clk 0:00:50]}  Be5+ {[%clk 0:00:15]} 64. Kg5 {[%clk 0:00:51]}  Bxg3 {[%clk 0:00:15]} 65. Kxg6 {[%clk 0:00:51]}  Bf2 {[%clk 0:00:14]} 66. Kg5 {[%clk 0:00:52]}  Bxe3+ {[%clk 0:00:14]} 67. Kh4 {[%clk 0:00:52]}  Ke5 {[%clk 0:00:15]} 68. Kg3 {[%clk 0:00:53]}  Bb6 {[%clk 0:00:15]} 69. Kh4 {[%clk 0:00:52]}  Bb5 {[%clk 0:00:16]} 70. Kg3 {[%clk 0:00:53]}  Kd4 {[%clk 0:00:16]} 71. Kf2 {[%clk 0:00:54]}  Kd3+ {[%clk 0:00:16]} 72. Ke1 {[%clk 0:00:55]}  Ba5+ {[%clk 0:00:15]} 73. Kd1 {[%clk 0:00:55]}  e3 {[%clk 0:00:15]} 74. Kc1 {[%clk 0:00:56]}  Bc3 {[%clk 0:00:15]} 75. Kb1 {[%clk 0:00:56]}  e2 {[%clk 0:00:14]} 76. Ka2 {[%clk 0:00:57]}  Bc4+ {[%clk 0:00:13]} 77. Ka3 {[%clk 0:00:57]}  e1=R {[%clk 0:00:13]} 78. Ka4 {[%clk 0:00:58]}  Ra1# {[%clk 0:00:13]} 0-1


[Site "https://www.chess.com"]

[Event "Titled Tuesday Blitz January 10 Early 2023"]
[White "Svane, Frederik"]
[Black "Estrada Nieto, Julian"]
[WhiteFideId "12923044"]
[BlackFideId "5101018"]
[WhiteElo "2600"]
[BlackElo "2215"]
[Result "1-0"]
[Round "01"]
[TimeControl "180+2"]
[Date "2023.01.10"]
[WhiteClock "0:00:18"]
[BlackClock "0:00:07"]

1. e4 {[%clk 0:02:56]}  e5 {[%clk 0:03:00]} 2. Nf3 {[%clk 0:02:56]}  Nc6 {[%clk 0:03:00]} 3. Bb5 {[%clk 0:02:57]}  a6 {[%clk 0:03:01]} 4. Ba4 {[%clk 0:02:57]}  Nf6 {[%clk 0:03:01]} 5. O-O {[%clk 0:02:58]}  Be7 {[%clk 0:03:02]} 6. d3 {[%clk 0:02:58]}  b5 {[%clk 0:03:01]} 7. Bb3 {[%clk 0:02:58]}  d6 {[%clk 0:03:00]} 8. a3 {[%clk 0:02:58]}  O-O {[%clk 0:02:58]} 9. Nc3 {[%clk 0:02:58]}  Bg4 {[%clk 0:02:52]} 10. Be3 {[%clk 0:02:57]}  Nd4 {[%clk 0:02:51]} 11. Bxd4 {[%clk 0:02:57]}  exd4 {[%clk 0:02:52]} 12. Nd5 {[%clk 0:02:58]}  Nd7 {[%clk 0:02:50]} 13. h3 {[%clk 0:02:56]}  Bxf3 {[%clk 0:02:48]} 14. Qxf3 {[%clk 0:02:57]}  c6 {[%clk 0:02:41]} 15. Nxe7+ {[%clk 0:02:57]}  Qxe7 {[%clk 0:02:40]} 16. Qg3 {[%clk 0:02:57]}  Kh8 {[%clk 0:02:31]} 17. f4 {[%clk 0:02:56]}  a5 {[%clk 0:02:21]} 18. Qf2 {[%clk 0:02:49]}  Qf6 {[%clk 0:02:07]} 19. Rae1 {[%clk 0:02:48]}  Rfe8 {[%clk 0:02:03]} 20. Qg3 {[%clk 0:02:39]}  Qg6 {[%clk 0:01:32]} 21. Qf2 {[%clk 0:02:18]}  Qf6 {[%clk 0:01:32]} 22. g4 {[%clk 0:02:18]}  Nc5 {[%clk 0:01:25]} 23. g5 {[%clk 0:02:09]}  Qe7 {[%clk 0:01:25]} 24. Qxd4 {[%clk 0:02:06]}  Nxb3 {[%clk 0:01:24]} 25. cxb3 {[%clk 0:02:07]}  Qe6 {[%clk 0:01:24]} 26. f5 {[%clk 0:01:48]}  Qxb3 {[%clk 0:01:23]} 27. Rf3 {[%clk 0:01:11]}  c5 {[%clk 0:01:13]} 28. Qf2 {[%clk 0:01:11]}  Re5 {[%clk 0:01:00]} 29. d4 {[%clk 0:01:03]}  Qxf3 {[%clk 0:00:44]} 30. Qxf3 {[%clk 0:01:04]}  cxd4 {[%clk 0:00:44]} 31. Rd1 {[%clk 0:01:04]}  Rc8 {[%clk 0:00:32]} 32. Rxd4 {[%clk 0:01:04]}  Rc1+ {[%clk 0:00:29]} 33. Rd1 {[%clk 0:01:02]}  Rc6 {[%clk 0:00:27]} 34. Kg2 {[%clk 0:00:51]}  Kg8 {[%clk 0:00:27]} 35. Kg3 {[%clk 0:00:51]}  Kf8 {[%clk 0:00:24]} 36. Kf4 {[%clk 0:00:50]}  Ke7 {[%clk 0:00:20]} 37. Rd5 {[%clk 0:00:32]}  Rxd5 {[%clk 0:00:15]} 38. exd5 {[%clk 0:00:33]}  Rc4+ {[%clk 0:00:16]} 39. Kg3 {[%clk 0:00:32]}  Rc5 {[%clk 0:00:13]} 40. f6+ {[%clk 0:00:32]}  Kf8 {[%clk 0:00:10]} 41. fxg7+ {[%clk 0:00:32]}  Kg8 {[%clk 0:00:10]} 42. Kg4 {[%clk 0:00:29]}  a4 {[%clk 0:00:10]} 43. Kh5 {[%clk 0:00:28]}  Rc4 {[%clk 0:00:10]} 44. Qg3 {[%clk 0:00:24]}  Kxg7 {[%clk 0:00:08]} 45. Qxd6 {[%clk 0:00:23]}  Rc2 {[%clk 0:00:07]} 46. Qe5+ {[%clk 0:00:20]}  Kg8 {[%clk 0:00:07]} 47. d6 {[%clk 0:00:18]}  Rd2 {[%clk 0:00:07]} 48. d7 {[%clk 0:00:18]} 1-0


[Site "https://www.chess.com"]

[Event "Titled Tuesday Blitz January 10 Early 2023"]
[White "Durarbayli, Vasif"]
[Black "Mesic, Ismet"]
[WhiteFideId "13402935"]
[BlackFideId "14411105"]
[WhiteElo "2627"]
[BlackElo "2190"]
[Result "1-0"]
[Round "01"]
[TimeControl "180+2"]
[Date "2023.01.10"]
[WhiteClock "0:00:37"]
[BlackClock "0:01:03"]

1. e4 {[%clk 0:02:57]}  c6 {[%clk 0:02:59]} 2. d4 {[%clk 0:02:57]}  d5 {[%clk 0:02:58]} 3. exd5 {[%clk 0:02:58]}  cxd5 {[%clk 0:02:58]} 4. c4 {[%clk 0:02:57]}  Nf6 {[%clk 0:02:58]} 5. Nc3 {[%clk 0:02:57]}  Nc6 {[%clk 0:02:58]} 6. Nf3 {[%clk 0:02:54]}  Bg4 {[%clk 0:02:58]} 7. cxd5 {[%clk 0:02:54]}  Nxd5 {[%clk 0:02:57]} 8. Qb3 {[%clk 0:02:53]}  Bxf3 {[%clk 0:02:56]} 9. gxf3 {[%clk 0:02:52]}  e6 {[%clk 0:02:56]} 10. Qxb7 {[%clk 0:02:51]}  Nxd4 {[%clk 0:02:56]} 11. Bb5+ {[%clk 0:02:47]}  Nxb5 {[%clk 0:02:56]} 12. Qc6+ {[%clk 0:02:47]}  Ke7 {[%clk 0:02:56]} 13. Qc5+ {[%clk 0:02:47]}  Nd6 {[%clk 0:02:50]} 14. Nxd5+ {[%clk 0:02:46]}  exd5 {[%clk 0:02:51]} 15. O-O {[%clk 0:02:44]}  Rc8 {[%clk 0:02:42]} 16. Qxd5 {[%clk 0:02:35]}  Kd7 {[%clk 0:02:19]} 17. Rd1 {[%clk 0:02:01]}  Kc7 {[%clk 0:01:31]} 18. Bf4 {[%clk 0:01:58]}  Qf6 {[%clk 0:01:04]} 19. Rac1+ {[%clk 0:01:41]}  Kd7 {[%clk 0:01:03]} 20. Qb5+ {[%clk 0:00:37]} 1-0


[Site "https://www.chess.com"]

[Event "Titled Tuesday Blitz January 10 Early 2023"]
[White "Alexakis, Dimitris"]
[Black "Shohat, Yotam"]
[WhiteFideId "4277023"]
[BlackFideId "2813955"]
[WhiteElo "2436"]
[BlackElo "2346"]
[Result "1-0"]
[Round "01"]
[TimeControl "180+2"]
[Date "2023.01.10"]
[WhiteClock "0:01:06"]
[BlackClock "0:00:02"]

1. g3 {[%clk 0:02:38]}  e5 {[%clk 0:02:57]} 2. Bg2 {[%clk 0:02:38]}  d5 {[%clk 0:02:57]} 3. d3 {[%clk 0:02:38]}  c6 {[%clk 0:02:48]} 4. Nf3 {[%clk 0:02:38]}  Bd6 {[%clk 0:02:47]} 5. e4 {[%clk 0:02:38]}  Nf6 {[%clk 0:02:42]} 6. Bg5 {[%clk 0:02:34]}  Nbd7 {[%clk 0:02:37]} 7. O-O {[%clk 0:02:29]}  O-O {[%clk 0:02:31]} 8. Re1 {[%clk 0:02:22]}  h6 {[%clk 0:02:27]} 9. Bxf6 {[%clk 0:02:12]}  Nxf6 {[%clk 0:02:28]} 10. c3 {[%clk 0:02:11]}  Re8 {[%clk 0:02:25]} 11. Nbd2 {[%clk 0:02:09]}  a5 {[%clk 0:02:11]} 12. a4 {[%clk 0:02:03]}  Bc7 {[%clk 0:02:10]} 13. Qc2 {[%clk 0:02:01]}  Be6 {[%clk 0:01:40]} 14. Rad1 {[%clk 0:01:58]}  Qb8 {[%clk 0:01:11]} 15. Nh4 {[%clk 0:01:53]}  g6 {[%clk 0:00:49]} 16. d4 {[%clk 0:01:50]}  dxe4 {[%clk 0:00:36]} 17. Nxe4 {[%clk 0:01:45]}  Nxe4 {[%clk 0:00:32]} 18. Bxe4 {[%clk 0:01:45]}  exd4 {[%clk 0:00:17]} 19. Bxg6 {[%clk 0:01:44]}  Be5 {[%clk 0:00:12]} 20. cxd4 {[%clk 0:01:37]}  Bf6 {[%clk 0:00:12]} 21. Bh7+ {[%clk 0:01:27]}  Kh8 {[%clk 0:00:11]} 22. Nf3 {[%clk 0:01:25]}  Bd5 {[%clk 0:00:11]} 23. Be4 {[%clk 0:01:25]}  Qd6 {[%clk 0:00:10]} 24. Kg2 {[%clk 0:01:19]}  Rxe4 {[%clk 0:00:08]} 25. Rxe4 {[%clk 0:01:20]}  Rg8 {[%clk 0:00:05]} 26. Rde1 {[%clk 0:01:19]}  Rg6 {[%clk 0:00:04]} 27. Kf1 {[%clk 0:01:15]}  Kg7 {[%clk 0:00:04]} 28. Rf4 {[%clk 0:01:10]}  Qd7 {[%clk 0:00:05]} 29. Qf5 {[%clk 0:01:07]}  Qd6 {[%clk 0:00:02]} 30. Ne5 {[%clk 0:01:07]}  Bxe5 {[%clk 0:00:01]} 31. Qxe5+ {[%clk 0:01:05]}  Qxe5 {[%clk 0:00:01]} 32. Rxe5 {[%clk 0:01:06]}  Rd6 {[%clk 0:00:02]} 33. Re7 {[%clk 0:01:06]} 1-0


[Site "https://www.chess.com"]

[Event "Titled Tuesday Blitz January 10 Early 2023"]
[White "Begunov, Konstantin"]
[Black "Rozman, Levy"]
[WhiteFideId "4118510"]
[BlackFideId "2039877"]
[WhiteElo "2325"]
[BlackElo "2322"]
[Result "1-0"]
[Round "01"]
[TimeControl "180+2"]
[Date "2023.01.10"]
[WhiteClock "0:02:26"]
[BlackClock "0:02:29"]

1. d4 {[%clk 0:03:00]}  g6 {[%clk 0:02:59]} 2. c4 {[%clk 0:03:00]}  Bg7 {[%clk 0:02:59]} 3. Nc3 {[%clk 0:02:58]}  c5 {[%clk 0:02:59]} 4. Nf3 {[%clk 0:02:58]}  cxd4 {[%clk 0:02:55]} 5. Nxd4 {[%clk 0:02:58]}  Nc6 {[%clk 0:02:55]} 6. e3 {[%clk 0:02:59]}  Nf6 {[%clk 0:02:55]} 7. Be2 {[%clk 0:02:59]}  O-O {[%clk 0:02:56]} 8. O-O {[%clk 0:02:59]}  d5 {[%clk 0:02:56]} 9. cxd5 {[%clk 0:02:57]}  Nxd5 {[%clk 0:02:53]} 10. Nxd5 {[%clk 0:02:54]}  Qxd5 {[%clk 0:02:49]} 11. Bf3 {[%clk 0:02:53]}  Qc5 {[%clk 0:02:44]} 12. Nxc6 {[%clk 0:02:42]}  bxc6 {[%clk 0:02:44]} 13. Qa4 {[%clk 0:02:42]}  Rd8 {[%clk 0:02:29]} 14. Qxc6 {[%clk 0:02:33]}  Qxc6 {[%clk 0:02:29]} 15. Bxc6 {[%clk 0:02:34]}  Rb8 {[%clk 0:02:29]} 16. Ba4 {[%clk 0:02:26]} 1-0


[Site "https://www.chess.com"]